lending/lending_fUSD_20251218
["ID","MTS","AMOUNT","RATE_DAILY","PERIOD"]
[399061762,1766092239640,-500.0,0.00016999,2]
[399061764,1766092239650,-500.0,0.00016999,2]
[399061766,1766092239659,-500.0,0.00016999,2]
[399061768,1766092239669,-500.0,0.00016999,2]
[399061770,1766092239678,-500.0,0.00016999,2]
[399061772,1766092239687,-319.80901897,0.00016999,2]
[399061774,1766092239696,-666.0,0.00016999,2]
[399061776,1766092239705,-607.15,0.00016999,2]
[399061778,1766092239715,-300.0,0.00016999,2]
[399061780,1766092239724,-666.0,0.00016999,2]
[399061782,1766092239733,-466.20015622,0.00016999,2]
[399061784,1766092239742,-459.74368949,0.00016999,2]
[399061787,1766092239752,-514.60916009,0.00016999,2]
[399061789,1766092239761,-500.0,0.00016999,2]
[399061791,1766092239770,-500.0,0.00016999,2]
[399061793,1766092239780,-500.0,0.00016999,2]
[399061795,1766092239789,-552.38439259,0.00016999,2]
[399061797,1766092239799,-151.09,0.00017,2]
[399061799,1766092239809,-893991.9922816,0.00017,2]
[399061801,1766092239827,-711.441254,0.00017,2]
[399061804,1766092239843,-848.7,0.00017,2]
[399061807,1766092239861,-3001.74636328,0.00017,2]
[399061848,1766092240260,-329.9336303,0.000169,2]
[399061856,1766092240316,-221.23878562,0.000169,2]
[399061857,1766092240325,-1296.23067776,0.00017,2]
[399061864,1766092240374,-999.21765633,0.00017,2]
[399061932,1766092243343,-263.94369537,0.00017,2]
[399061933,1766092243356,-5483.08203141,0.00017,2]
[399061934,1766092243370,-359.63511905,0.00017,2]
[399061935,1766092243516,-872.26117996,0.00017,2]
[399061936,1766092243528,-925.9169098,0.00017,2]
[399061943,1766092246777,-1994.61084385,0.00017,2]
[399061944,1766092246789,-2228.52430962,0.00017,2]
[399061945,1766092246800,-1362.65454814,0.00017,2]
[399061946,1766092246811,-12613.98367604,0.00017,2]
[399061947,1766092246887,-2217.13143295,0.00017,2]
[399061948,1766092247547,-912.15864265,0.00017,2]
[399061949,1766092247559,-1800.00000001,0.00017,2]
[399061952,1766092335435,520.44491949,0.00018,30]
[399061953,1766092341315,500.0,0.00018,30]
[399061954,1766092343892,500.0,0.00018,30]
[399061955,1766092346566,534.98106414,0.00018,30]
[399061956,1766092346620,541.77058575,0.00018,30]
[399061957,1766092787677,999.0,0.00015994,3]
[399061962,1766092827519,458.82,0.00015938,2]
[399061971,1766092913835,1000.0,0.00015993,2]
[399061972,1766093055937,3385.53,0.00015961,2]
[399061975,1766093117289,546.91,0.00016008,2]
[399061976,1766093118742,1852.42,0.00016008,2]
[399062031,1766093161005,-162.39805198,0.000164,2]
[399062037,1766093213525,9675.21389604,0.000162,5]
[399062038,1766093213552,324.7951296,0.000162,5]
[399062052,1766093232735,200.0,0.00015917,2]
[399062053,1766093234125,258.95558284,0.000101,2]
[399062147,1766093295013,1536.89679038,0.0001,2]
[399062148,1766093305477,1621.6354,0.00016399,2]
[399062150,1766093315390,6841.47780962,0.00016,4]
[399062151,1766093315416,10000.01,0.00016,4]
[399062152,1766093315442,10000.01,0.00016,4]
[399062153,1766093315467,10000.01,0.00016,4]
[399062154,1766093315491,763.5215139,0.00016,4]
[399062156,1766093320929,160.47,0.00016169,2]
[399062161,1766093383444,4432.40626881,0.00016464,2]
[399062163,1766093428003,219.04050207,0.00016452,2]
[399062181,1766093431395,-289.0,0.00016512,2]
[399062183,1766093431407,-546.60817854,0.00016512,2]
[399062184,1766093431420,-3885.79809027,0.00016512,2]
[399062185,1766093431431,-151.0,0.00016552,2]
[399062186,1766093431443,-300.0,0.00016553,2]
[399062187,1766093431454,-300.0,0.00016554,2]
[399062188,1766093431464,-1200.0,0.00016554,2]
[399062189,1766093431474,-550.0,0.00016554,2]
[399062190,1766093431484,-94581.87494588,0.00016555,2]
[399062191,1766093431496,-5508.72762155,0.00016555,2]
[399062192,1766093431508,-31844.45919996,0.00016555,2]
[399062193,1766093431519,-706.40463685,0.00016555,2]
[399062194,1766093431554,-15672.15769133,0.00016555,2]
[399062195,1766093431568,-5265.3160299,0.00016555,2]
[399062196,1766093431580,-1023.16132915,0.00016555,2]
[399062197,1766093431591,-542.91191829,0.00016555,2]
[399062198,1766093431607,-3673.29706504,0.00016555,2]
[399062199,1766093431619,-500.0,0.00016555,2]
[399062200,1766093431631,-380.79749567,0.00016555,2]
[399062201,1766093431642,-533.34640399,0.00016555,2]
[399062202,1766093431655,-265.84703492,0.00016555,2]
[399062203,1766093431671,-652.30130565,0.00016555,2]
[399062204,1766093431684,-1781.3431918,0.00016555,2]
[399062205,1766093431695,-977.19910769,0.00016555,2]
[399062217,1766093434357,219.04050207,0.00016457,2]
[399062219,1766093437515,-500.0,0.00016554,2]
[399062220,1766093437525,-500.0,0.00016554,2]
[399062221,1766093437535,-500.0,0.00016554,2]
[399062222,1766093437546,-500.0,0.00016554,2]
[399062223,1766093437556,-500.0,0.00016554,2]
[399062224,1766093437565,-500.0,0.00016554,2]
[399062225,1766093437576,-500.0,0.00016554,2]
[399062226,1766093437585,-500.0,0.00016554,2]
[399062227,1766093437595,-500.0,0.00016554,2]
[399062228,1766093437605,-500.0,0.00016554,2]
[399062229,1766093437615,-500.0,0.00016554,2]
[399062230,1766093437625,-500.0,0.00016554,2]
[399062231,1766093437634,-500.0,0.00016554,2]
[399062232,1766093437644,-500.0,0.00016554,2]
[399062233,1766093437654,-500.0,0.00016554,2]
[399062234,1766093437664,-268.93130953,0.00016554,2]
[399062235,1766093437674,-500.0,0.00016554,2]
[399062237,1766093437684,-500.0,0.00016554,2]
[399062239,1766093437694,-500.0,0.00016554,2]
[399062241,1766093437703,-500.0,0.00016554,2]
[399062243,1766093437713,-500.0,0.00016554,2]
[399062245,1766093437724,-500.0,0.00016554,2]
[399062247,1766093437734,-500.0,0.00016554,2]
[399062249,1766093437744,-500.0,0.00016554,2]
[399062251,1766093437753,-500.0,0.00016554,2]
[399062253,1766093437764,-500.0,0.00016554,2]
[399062255,1766093437774,-500.0,0.00016554,2]
[399062257,1766093437784,-500.0,0.00016554,2]
[399062259,1766093437795,-500.0,0.00016554,2]
[399062261,1766093437804,-500.0,0.00016554,2]
[399062263,1766093437814,-500.0,0.00016554,2]
[399062264,1766093437824,-500.0,0.00016554,2]
[399062265,1766093437834,-500.0,0.00016554,2]
[399062266,1766093437844,-500.0,0.00016554,2]
[399062267,1766093437853,-500.0,0.00016554,2]
[399062268,1766093437863,-500.0,0.00016554,2]
[399062269,1766093437873,-500.0,0.00016554,2]
[399062270,1766093437883,-500.0,0.00016554,2]
[399062271,1766093437893,-500.0,0.00016554,2]
[399062272,1766093437904,-314.15612158,0.00016554,2]
[399062273,1766093437913,-500.0,0.00016554,2]
[399062274,1766093437923,-500.0,0.00016554,2]
[399062275,1766093437933,-500.0,0.00016554,2]
[399062276,1766093437943,-724090.85502233,0.00016555,2]
[399062277,1766093437953,-4432.40626881,0.00016561,2]
[399062278,1766093437963,-6686.755,0.00016565,2]
[399062279,1766093437973,-2500.0,0.00016565,2]
[399062281,1766093437983,-347.84868846,0.00016592,2]
[399062283,1766093437993,-5399.28046823,0.000166,2]
[399062285,1766093438002,-358.53220945,0.000166,2]
[399062287,1766093438012,-200.36684517,0.00016601,2]
[399062289,1766093438022,-4432.40626881,0.00016609,2]
[399062293,1766093438420,-300.0,0.00016654,2]
[399062294,1766093438445,-500.0,0.00016655,2]
[399062295,1766093438455,-500.0,0.00016655,2]
[399062296,1766093438466,-500.0,0.00016655,2]
[399062297,1766093438477,-500.0,0.00016655,2]
[399062298,1766093438487,-500.0,0.00016655,2]
[399062299,1766093438499,-574.12855637,0.00016655,2]
[399062300,1766093438509,-500.0,0.00016655,2]
[399062301,1766093438520,-500.0,0.00016655,2]
[399062302,1766093438530,-250.0,0.00016655,2]
[399062303,1766093438540,-500.0,0.00016655,2]
[399062304,1766093438553,-250.0,0.00016655,2]
[399062305,1766093438564,-500.0,0.00016655,2]
[399062306,1766093438575,-250.0,0.00016655,2]
[399062307,1766093438587,-500.0,0.00016655,2]
[399062308,1766093438597,-250.0,0.00016655,2]
[399062309,1766093438607,-500.0,0.00016655,2]
[399062310,1766093438616,-250.0,0.00016655,2]
[399062311,1766093438626,-216.36062075,0.00016655,2]
[399062313,1766093438635,-255.55242947,0.00016655,2]
[399062314,1766093438645,-500.0,0.00016655,2]
[399062315,1766093438655,-250.0,0.00016655,2]
[399062316,1766093438664,-151.0,0.00016655,2]
[399062317,1766093438674,-500.0,0.00016655,2]
[399062318,1766093438683,-209.40437684,0.00016655,2]
[399062319,1766093438693,-500.0,0.00016655,2]
[399062320,1766093438704,-250.0,0.00016655,2]
[399062321,1766093438714,-500.0,0.00016655,2]
[399062322,1766093438723,-250.0,0.00016655,2]
[399062323,1766093438733,-500.0,0.00016655,2]
[399062324,1766093438743,-500.0,0.00016655,2]
[399062325,1766093438753,-250.0,0.00016655,2]
[399062326,1766093438764,-500.0,0.00016655,2]
[399062327,1766093438774,-500.0,0.00016655,2]
[399062328,1766093438784,-250.0,0.00016655,2]
[399062329,1766093438794,-500.0,0.00016655,2]
[399062330,1766093438805,-500.0,0.00016655,2]
[399062331,1766093438816,-250.0,0.00016655,2]
[399062332,1766093438825,-500.0,0.00016655,2]
[399062333,1766093438834,-500.0,0.00016655,2]
[399062334,1766093438844,-250.0,0.00016655,2]
[399062335,1766093438853,-500.0,0.00016655,2]
[399062336,1766093438863,-500.0,0.00016655,2]
[399062337,1766093438873,-250.0,0.00016655,2]
[399062338,1766093438884,-500.0,0.00016655,2]
[399062339,1766093438894,-200.0,0.00016655,2]
[399062340,1766093438904,-200.0,0.00016655,2]
[399062341,1766093438915,-500.0,0.00016655,2]
[399062342,1766093438925,-500.0,0.00016655,2]
[399062343,1766093438935,-500.0,0.00016655,2]
[399062344,1766093438945,-151.0,0.00016655,2]
[399062345,1766093438955,-500.0,0.00016655,2]
[399062346,1766093438965,-200.0,0.00016655,2]
[399062347,1766093438975,-500.0,0.00016655,2]
[399062348,1766093438985,-151.0,0.00016655,2]
[399062349,1766093438995,-500.0,0.00016655,2]
[399062350,1766093439006,-151.0,0.00016655,2]
[399062351,1766093439017,-151.0,0.00016655,2]
[399062352,1766093439027,-151.0,0.00016655,2]
[399062353,1766093439037,-151.0,0.00016655,2]
[399062354,1766093439049,-151.0,0.00016655,2]
[399062355,1766093439060,-500.0,0.00016655,2]
[399062356,1766093439070,-250.0,0.00016655,2]
[399062357,1766093439081,-151.0,0.00016655,2]
[399062358,1766093439091,-500.0,0.00016655,2]
[399062359,1766093439101,-151.0,0.00016655,2]
[399062360,1766093439112,-250.0,0.00016655,2]
[399062361,1766093439123,-500.0,0.00016655,2]
[399062362,1766093439133,-151.0,0.00016655,2]
[399062363,1766093439145,-250.0,0.00016655,2]
[399062364,1766093439155,-500.0,0.00016655,2]
[399062365,1766093439166,-151.0,0.00016655,2]
[399062366,1766093439176,-250.0,0.00016655,2]
[399062367,1766093439186,-500.0,0.00016655,2]
[399062368,1766093439197,-250.0,0.00016655,2]
[399062369,1766093439207,-500.0,0.00016655,2]
[399062370,1766093439217,-250.0,0.00016655,2]
[399062371,1766093439227,-500.0,0.00016655,2]
[399062372,1766093439236,-151.0,0.00016655,2]
[399062373,1766093439246,-250.0,0.00016655,2]
[399062374,1766093439256,-500.0,0.00016655,2]
[399062375,1766093439266,-151.0,0.00016655,2]
[399062376,1766093439277,-250.0,0.00016655,2]
[399062377,1766093439290,-500.0,0.00016655,2]
[399062378,1766093439305,-151.0,0.00016655,2]
[399062379,1766093439315,-250.0,0.00016655,2]
[399062380,1766093439327,-500.0,0.00016655,2]
[399062381,1766093439337,-151.0,0.00016655,2]
[399062382,1766093439347,-250.0,0.00016655,2]
[399062383,1766093439358,-500.0,0.00016655,2]
[399062384,1766093439368,-151.0,0.00016655,2]
[399062385,1766093439378,-250.0,0.00016655,2]
[399062386,1766093439388,-151.0,0.00016655,2]
[399062387,1766093439398,-151.0,0.00016655,2]
[399062388,1766093439409,-151.0,0.00016655,2]
[399062389,1766093439420,-151.0,0.00016655,2]
[399062390,1766093439430,-151.0,0.00016655,2]
[399062391,1766093439439,-582.9934841,0.00016655,2]
[399062392,1766093439449,-151.0,0.00016655,2]
[399062393,1766093439459,-500.0,0.00016655,2]
[399062394,1766093439469,-151.0,0.00016655,2]
[399062395,1766093439478,-500.0,0.00016655,2]
[399062396,1766093439488,-151.0,0.00016655,2]
[399062397,1766093439497,-500.0,0.00016655,2]
[399062398,1766093439506,-151.0,0.00016655,2]
[399062399,1766093439515,-500.0,0.00016655,2]
[399062400,1766093439525,-151.0,0.00016655,2]
[399062401,1766093439534,-582.52208254,0.00016655,2]
[399062402,1766093439543,-4432.40626881,0.00016658,2]
[399062403,1766093439554,-152.53,0.00016662,2]
[399062404,1766093439563,-5428.86,0.00016664,2]
[399062405,1766093439573,-295.07033905,0.00016664,2]
[399062406,1766093439583,-1188.88,0.00016664,2]
[399062407,1766093439592,-607.15,0.00016664,2]
[399062408,1766093439602,-1747.238,0.00016664,2]
[399062409,1766093439611,-178.919,0.00016664,2]
[399062410,1766093439620,-466.20015622,0.00016664,2]
[399062411,1766093439629,-179.89894701,0.00016692,2]
[399062412,1766093439638,-4432.40626881,0.00016706,2]
[399062413,1766093439647,-4432.40626881,0.00016755,2]
[399062414,1766093439656,-19414.6334,0.000168,2]
[399062415,1766093439666,-1000.0,0.000168,2]
[399062416,1766093439675,-4432.40626881,0.00016803,2]
[399062417,1766093439684,-4432.40626881,0.00016852,2]
[399062418,1766093439694,-5399.28046816,0.00016856,2]
[399062419,1766093439703,-500.0,0.00016899,2]
[399062420,1766093439712,-285.20294484,0.00016899,2]
[399062421,1766093439722,-512.2631711,0.00016899,2]
[399062422,1766093439730,-500.0,0.00016899,2]
[399062423,1766093439740,-500.0,0.00016899,2]
[399062424,1766093439749,-500.0,0.00016899,2]
[399062425,1766093439758,-500.0,0.00016899,2]
[399062426,1766093439767,-500.0,0.00016899,2]
[399062427,1766093439776,-500.0,0.00016899,2]
[399062428,1766093439785,-1000.0,0.000169,2]
[399062429,1766093439794,-1000.0,0.000169,2]
[399062430,1766093439804,-546.22310036,0.000169,2]
[399062431,1766093439813,-182.5402397,0.000169,2]
[399062433,1766093439822,-459.3103466,0.000169,2]
[399062434,1766093439831,-4432.40626881,0.000169,2]
[399062435,1766093439841,-335.70294944,0.000169,2]
[399062436,1766093439850,-500.0,0.000169,2]
[399062437,1766093439859,-500.0,0.000169,2]
[399062438,1766093439868,-4391.0,0.000169,2]
[399062439,1766093439878,-1188.88,0.00016938,2]
[399062440,1766093439887,-106198.39,0.00016986,2]
[399062441,1766093439897,-491.0,0.00016992,2]
[399062442,1766093439907,-151.0,0.00016997,2]
[399062444,1766093439917,-183.31760521,0.00016999,5]
[399062445,1766093439926,-1194.78694617,0.00016999,5]
[399062446,1766093439937,-1194.78694617,0.00016999,5]
[399062447,1766093439947,-1194.78694617,0.00016999,5]
[399062448,1766093439957,-500.0,0.00016999,2]
[399062449,1766093439966,-319.80901897,0.00016999,2]
[399062450,1766093439976,-666.0,0.00016999,2]
[399062451,1766093439986,-300.0,0.00016999,2]
[399062452,1766093439996,-666.0,0.00016999,2]
[399062453,1766093440006,-666.0,0.00016999,2]
[399062454,1766093440016,-165.71531778,0.00016999,2]
[399062455,1766093440026,-154.38274803,0.00016999,2]
[399062456,1766093440037,-1198670.97113182,0.00017,2]
[399062457,1766093440048,-747.09983051,0.00017,2]
[399062458,1766093440059,-38009.5638238,0.00017,2]
[399062459,1766093440068,-43873.6630265,0.00017,2]
[399062460,1766093440078,-250.0,0.00017,2]
[399062461,1766093440088,-61290.49069684,0.00017,2]
[399062462,1766093440102,-4163.15341941,0.00017,2]
[399062463,1766093440199,-300.0,0.00016554,2]
[399062464,1766093440215,-200.0,0.00016554,2]
[399062465,1766093440224,-102.22204652,0.00016836,2]
[399062466,1766093440235,-48.77795348,0.00016836,2]
[399062467,1766093440245,-377.69704148,0.00017,2]
[399062468,1766093440300,151.0,0.00016461,2]
[399062469,1766093440324,68.04050207,0.00016461,2]
[399062484,1766093442491,-31671.62469751,0.00017,2]
[399062487,1766093442604,-2379.12870126,0.00017,2]
[399062488,1766093442616,-7507.97303453,0.00017,2]
[399062489,1766093442664,-3891.73401945,0.00017,2]
[399062490,1766093442720,-5953.29864587,0.00017,2]
[399062491,1766093442731,-4042.956496,0.00017,2]
[399062505,1766093446182,-3294.0,0.00017,2]
[399062506,1766093447121,-785.98369254,0.00017,2]
[399062514,1766093494055,253.18503664,0.00016224,2]
[399062515,1766093494082,1562.28096336,0.00016224,2]
[399062516,1766093494207,178.919,0.00016224,2]
[399062523,1766093534169,166.66,0.0001556,2]
[399062524,1766093534393,166.66,0.00015888,2]
[399062525,1766093535356,166.66,0.00016216,2]
[399062526,1766093538188,179.89894701,0.00016465,2]
[399062529,1766093604453,7320.20410235,0.00016465,2]
[399062530,1766093621947,304.36760235,0.00016465,2]
[399062542,1766093760172,2375.4382953,0.00016455,2]
[399062543,1766093760199,10000.01,0.00016455,2]
[399062544,1766093760227,7039.1851047,0.00016455,2]
[399062545,1766093796995,179.89894701,0.00016465,2]
[399062547,1766093815567,2500.0,0.00016455,2]
[399062549,1766093857431,3545.92501512,0.00016465,2]
[399062550,1766093857965,6454.08498488,0.00016455,2]
[399062552,1766094155512,-232.67001512,0.00016455,2]
[399062553,1766094155536,-1393.56914253,0.00016455,2]
[399062554,1766094158529,-500.0,0.00016455,2]
[399062555,1766094160289,-171.62,0.00016455,2]
[399062556,1766094162621,-175.05033836,0.00016455,2]
[399062557,1766094165750,1121.688602,0.00016372,2]
[399062558,1766094182234,-259.76051911,0.00016455,2]
[399062559,1766094182268,-195.0,0.00016458,2]
[399062560,1766094182301,-179.89894701,0.00016459,2]
[399062561,1766094182331,-300.0,0.00016461,2]
[399062562,1766094182363,-1200.0,0.00016461,2]
[399062563,1766094185160,-2331.97021421,0.00016462,2]
[399062564,1766094188175,-4663.94042842,0.00016462,2]
[399062566,1766094206719,239.31,0.00013699,2]
[399062567,1766094245532,-469.50811255,0.00016455,2]
[399062568,1766094269181,160.51,0.00012528,2]
[399062569,1766094276112,-320.70058404,0.00016455,2]
[399062570,1766094278115,-349.3,0.00016455,2]
[399062572,1766094425619,-172.84,0.00016453,2]
[399062573,1766094433538,9600.19,0.00016445,2]
[399062574,1766094433596,399.81,0.00016445,2]
[399062575,1766094440520,-127.16,0.00016453,2]
[399062576,1766094440547,-67.84,0.00016454,2]
[399062577,1766094441195,9600.2,0.00016445,2]
[399062578,1766094441219,399.8,0.00016445,2]
[399062579,1766094443189,-215.35903495,0.00016454,2]
[399062580,1766094445233,-317.42903495,0.00016454,2]
[399062581,1766094448249,-174.2819301,0.00016454,2]
[399062582,1766094449783,9600.21,0.00016445,2]
[399062583,1766094450436,399.79,0.00016445,2]
[399062584,1766094450563,-229.32,0.00016454,2]
[399062585,1766094464618,5320.0,0.000162,2]
[399062586,1766094591734,-179.89894701,0.00016354,2]
[399062587,1766094591758,-334.03875895,0.00016435,3]
[399062588,1766094593858,-319.36124105,0.00016435,3]
[399062589,1766094593883,-63.61817282,0.00016443,2]
[399062590,1766094596881,-236.38182718,0.00016443,2]
[399062591,1766094596904,-486.51817282,0.00016444,2]
[399062592,1766094599533,-13.48182718,0.00016444,2]
[399062593,1766094599558,-163.97817282,0.00016444,2]
[399062594,1766094606615,-244.18058613,0.00016435,2]
[399062595,1766094610671,-300.0,0.00016435,2]
[399062596,1766094613901,-217.02058613,0.00016435,2]
[399062597,1766094615394,-273.96102016,0.00016443,2]
[399062598,1766094617177,-26.03897984,0.00016443,2]
[399062599,1766094617201,-277.13102016,0.00016443,2]
[399062600,1766094618802,-152.65,0.00016443,2]
[399062601,1766094622033,-151.43,0.00016443,2]
[399062602,1766094625227,-235.77137549,0.00016443,2]
[399062603,1766094627545,-291.0,0.00016443,2]
[399062604,1766094631385,-92.01760435,0.00016443,2]
[399062609,1766094631414,-290.96180952,0.00016444,2]
[399062612,1766094631476,-209.03819048,0.00016444,2]
[399062613,1766094631486,-81.97786651,0.00016444,2]
[399062614,1766094631498,-254.04396067,0.00016444,2]
[399062615,1766094631508,-141.49191699,0.00016444,2]
[399062616,1766094631525,-358.50808301,0.00016444,2]
[399062617,1766094631535,-625.62565868,0.00016444,2]
[399062618,1766094631555,-191.38024771,0.00016444,2]
[399062619,1766094631565,-500.0,0.00016444,2]
[399062620,1766094631575,-295.66190559,0.00016444,2]
[399062621,1766094631616,-204.33809441,0.00016444,2]
[399062622,1766094631626,-500.0,0.00016444,2]
[399062623,1766094631637,-177.9811533,0.00016444,2]
[399062624,1766094631650,-20.49372611,0.00016444,2]
[399062625,1766094631661,-513.57284202,0.00016444,2]
[399062626,1766094631682,-303.43306437,0.00016444,2]
[399062627,1766094631693,-817.00590639,0.00016444,2]
[399062628,1766094631703,-274.49345189,0.00016444,2]
[399062629,1766094631713,-500.0,0.00016444,2]
[399062630,1766094631723,-186.15621906,0.00016444,2]
[399062631,1766094631733,-817.00590639,0.00016444,2]
[399062632,1766094631744,-500.0,0.00016444,2]
[399062634,1766094631754,-817.00590639,0.00016444,2]
[399062635,1766094631764,-500.0,0.00016444,2]
[399062636,1766094631775,-817.00590639,0.00016444,2]
[399062637,1766094631784,-500.0,0.00016444,2]
[399062638,1766094631794,-817.00590639,0.00016444,2]
[399062639,1766094631805,-500.0,0.00016444,2]
[399062641,1766094631816,-500.0,0.00016444,2]
[399062643,1766094631826,-817.00590639,0.00016444,2]
[399062645,1766094631840,-500.0,0.00016444,2]
[399062648,1766094631850,-817.00590639,0.00016444,2]
[399062650,1766094631860,-268.93130953,0.00016444,2]
[399062652,1766094631870,-500.0,0.00016444,2]
[399062654,1766094631880,-817.00590639,0.00016444,2]
[399062657,1766094631890,-500.0,0.00016444,2]
[399062659,1766094631900,-817.00590639,0.00016444,2]
[399062661,1766094631911,-500.0,0.00016444,2]
[399062663,1766094631921,-817.00590639,0.00016444,2]
[399062665,1766094631931,-500.0,0.00016444,2]
[399062667,1766094631941,-817.00590639,0.00016444,2]
[399062669,1766094631951,-500.0,0.00016444,2]
[399062670,1766094631962,-817.00590639,0.00016444,2]
[399062672,1766094631972,-817.00590639,0.00016444,2]
[399062674,1766094631982,-817.00590639,0.00016444,2]
[399062676,1766094631992,-817.00590639,0.00016444,2]
[399062678,1766094632001,-817.00590639,0.00016444,2]
[399062680,1766094632012,-817.00590639,0.00016444,2]
[399062682,1766094632021,-817.00590639,0.00016444,2]
[399062684,1766094632034,-783.37964013,0.00016444,2]
[399062686,1766094632046,-33.62626626,0.00016444,2]
[399062688,1766094632055,-817.00590639,0.00016444,2]
[399062690,1766094632065,-817.00590639,0.00016444,2]
[399062692,1766094632075,-817.00590639,0.00016444,2]
[399062693,1766094632084,-817.00590639,0.00016444,2]
[399062695,1766094632093,-817.00590639,0.00016444,2]
[399062697,1766094632104,-817.00590639,0.00016444,2]
[399062699,1766094632113,-817.00590639,0.00016444,2]
[399062701,1766094632123,-817.00590639,0.00016444,2]
[399062703,1766094632133,-817.00590639,0.00016444,2]
[399062705,1766094632142,-817.00590639,0.00016444,2]
[399062706,1766094632152,-817.00590639,0.00016444,2]
[399062708,1766094632161,-817.00590639,0.00016444,2]
[399062710,1766094632170,-817.00590639,0.00016444,2]
[399062712,1766094632180,-817.00590639,0.00016444,2]
[399062714,1766094632189,-817.00590639,0.00016444,2]
[399062716,1766094632199,-817.00590639,0.00016444,2]
[399062718,1766094632208,-817.00590639,0.00016444,2]
[399062719,1766094632218,-817.00590639,0.00016444,2]
[399062721,1766094632227,-817.00590639,0.00016444,2]
[399062723,1766094632236,-817.00590639,0.00016444,2]
[399062725,1766094632246,-817.00590639,0.00016444,2]
[399062727,1766094632255,-817.00590639,0.00016444,2]
[399062729,1766094632264,-817.00590639,0.00016444,2]
[399062730,1766094632274,-817.00590639,0.00016444,2]
[399062732,1766094632283,-817.00590639,0.00016444,2]
[399062734,1766094632293,-817.00590639,0.00016444,2]
[399062736,1766094632302,-817.00590639,0.00016444,2]
[399062738,1766094632313,-817.00590639,0.00016444,2]
[399062739,1766094632322,-817.00590639,0.00016444,2]
[399062740,1766094632331,-814.79778231,0.00016444,2]
[399062741,1766094632341,-814.79778231,0.00016444,2]
[399062742,1766094632351,-814.79778231,0.00016444,2]
[399062743,1766094632360,-814.79778231,0.00016444,2]
[399062744,1766094632369,-814.79778231,0.00016444,2]
[399062745,1766094632379,-814.79778231,0.00016444,2]
[399062746,1766094632388,-814.79778231,0.00016444,2]
[399062747,1766094632399,-814.79778231,0.00016444,2]
[399062748,1766094632420,-814.79778231,0.00016444,2]
[399062749,1766094632433,-814.79778231,0.00016444,2]
[399062750,1766094632443,-814.79778231,0.00016444,2]
[399062751,1766094632453,-814.79778231,0.00016444,2]
[399062752,1766094632463,-814.79778231,0.00016444,2]
[399062753,1766094632473,-814.79778231,0.00016444,2]
[399062754,1766094632483,-814.79778231,0.00016444,2]
[399062755,1766094632493,-814.79778231,0.00016444,2]
[399062756,1766094632503,-814.79778231,0.00016444,2]
[399062757,1766094632513,-814.79778231,0.00016444,2]
[399062758,1766094632523,-814.79778231,0.00016444,2]
[399062759,1766094632533,-814.79778231,0.00016444,2]
[399062760,1766094632543,-814.79778231,0.00016444,2]
[399062761,1766094632552,-814.79778231,0.00016444,2]
[399062762,1766094632563,-814.79778231,0.00016444,2]
[399062763,1766094632573,-862.02349704,0.00016444,2]
[399062764,1766094632584,-862.02349704,0.00016444,2]
[399062765,1766094632594,-862.02349704,0.00016444,2]
[399062766,1766094632608,-862.02349704,0.00016444,2]
[399062767,1766094632618,-862.02349704,0.00016444,2]
[399062768,1766094632627,-862.02349704,0.00016444,2]
[399062769,1766094632638,-862.02349704,0.00016444,2]